bitfinex/quotes_SOLUSD_20260228
["timestamp","ask_amount","ask_price","bid_price","bid_amount"]
[1772293694076,6.122318,80.78,80.741,4.32250356]
[1772293694281,6.122318,80.79,80.741,4.32250356]
[1772293695191,43.32272957,80.789,80.743,4.32250356]
[1772293695593,6.122318,80.78,80.743,4.32250356]
[1772293696171,4.49432998,80.779,80.743,4.32250356]
[1772293696697,4.49432998,80.777,80.745,4.32250356]
[1772293699501,12.37991482,80.776,80.745,4.32250356]
[1772293701083,12.37991482,80.776,80.747,4.32250356]
[1772293702992,4.49432998,80.775,80.749,4.32250356]
[1772293704092,12.38022135,80.774,80.749,4.32250356]
[1772293705196,4.49432998,80.773,80.749,4.32250356]
[1772293705697,4.49432998,80.769,80.733,4.32250356]
[1772293705894,6.122318,80.77,80.733,4.32250356]
[1772293706080,4.49432998,80.769,80.733,4.32250356]
[1772293707882,4.49432998,80.767,80.733,4.32250356]
[1772293709278,4.49432998,80.767,80.735,4.32250356]
[1772293710097,4.49432998,80.765,80.737,4.32250356]
[1772293712404,10.61664798,80.75,80.731,4.32250356]
[1772293712594,4.49432998,80.749,80.731,4.32250356]
[1772293713383,4.49432998,80.749,80.73,0.2]
[1772293713882,4.49432998,80.739,80.71,0.2]
[1772293714301,4.49432998,80.737,80.71,0.2]
[1772293715797,12.38523307,80.742,80.711,4.32250356]
[1772293716005,16.87956305,80.742,80.711,4.32250356]
[1772293716406,4.49432998,80.741,80.711,16.71238845]
[1772293716590,4.49432998,80.741,80.712,4.32250356]
[1772293717203,4.49432998,80.739,80.71,0.2]
[1772293718205,6.122318,80.74,80.71,0.2]
[1772293718206,4.49432998,80.737,80.71,0.2]
[1772293720405,4.49432998,80.735,80.71,0.2]
[1772293722309,4.30740545,80.733,80.71,0.2]
[1772293722510,12.38566566,80.739,80.712,4.21461997]
[1772293722811,4.30740545,80.738,80.712,4.21461997]
[1772293723308,4.30740545,80.738,80.71,0.2]
[1772293724306,4.28823972,80.736,80.71,0.2]
[1772293725511,4.28823972,80.742,80.711,4.06769558]
[1772293726996,7.92750602,80.759,80.731,4.06769558]
[1772293727215,7.92750602,80.759,80.741,4.06769558]
[1772293729114,6.13531587,80.78,80.74,18.52062084]
[1772293729115,4.28823972,80.785,80.744,4.06769558]
[1772293729317,4.28823972,80.785,80.742,12.38512793]
[1772293729318,12.37900271,80.782,80.761,4.06769558]
[1772293732820,4.28823972,80.793,80.762,4.06769558]
[1772293734733,4.28823972,80.791,80.762,4.06769558]
[1772293735023,4.28823972,80.791,80.763,12.38190755]
[1772293735239,12.37746311,80.792,80.764,4.06769558]
[1772293735422,16.66570283,80.792,80.764,4.06769558]
[1772293735612,4.28823972,80.791,80.764,4.06769558]
[1772293736013,16.66509452,80.796,80.764,4.06769558]
[1772293736525,4.28823972,80.795,80.764,4.06769558]
[1772293737334,4.28823972,80.808,80.771,4.06769558]
[1772293738317,4.28823972,80.808,80.765,43.33560329]
[1772293738318,4.28823972,80.808,80.781,4.06769558]
[1772293739223,7.87562441,80.813,80.765,43.33560329]
[1772293739224,7.87562441,80.813,80.791,4.06769558]
[1772293739535,20.24997439,80.813,80.791,4.06769558]
[1772293739835,4.28823972,80.812,80.783,4.06769558]
[1772293740037,4.28823972,80.799,80.763,4.06769558]
[1772293740228,4.28823972,80.799,80.766,4.06769558]
[1772293740531,4.28823972,80.799,80.766,16.44914321]
[1772293740839,4.28823972,80.799,80.767,4.06769558]
[1772293741338,4.28823972,80.797,80.767,4.06769558]
[1772293741727,4.28823972,80.797,80.768,16.44883662]
[1772293741927,4.28823972,80.797,80.769,4.06769558]
[1772293742932,4.28823972,80.795,80.769,4.06769558]
[1772293745237,12.37715671,80.794,80.769,4.06769558]
[1772293745423,4.28823972,80.793,80.769,4.06769558]
[1772293745828,4.28823972,80.793,80.769,7.7615296]
[1772293746036,4.28823972,80.793,80.77,3.69383402]
[1772293746418,4.28823972,80.791,80.769,4.06769558]
[1772293748328,4.28823972,80.789,80.761,4.06769558]
[1772293751243,4.19838196,80.787,80.763,4.31118827]
[1772293752731,4.19838196,80.787,80.755,4.31118827]
[1772293753029,4.19838196,80.787,80.75,6.13531587]
[1772293753030,4.19838196,80.779,80.741,4.31118827]
[1772293754541,6.13531587,80.79,80.743,4.31118827]
[1772293754542,4.19838196,80.777,80.743,4.31118827]
[1772293756942,4.19838196,80.775,80.745,4.31118827]
[1772293757150,12.37991482,80.776,80.751,4.31118827]
[1772293757435,12.37991482,80.776,80.744,43.34687406]
[1772293757436,4.19838196,80.781,80.761,4.31118827]
[1772293757843,4.19838196,80.798,80.761,4.31118827]
[1772293759346,4.19838196,80.798,80.734,61.93113887]
[1772293759347,4.19838196,80.809,80.775,4.31118827]
[1772293761352,4.19838196,80.807,80.777,4.31118827]
[1772293763931,4.19838196,80.805,80.777,4.31118827]
[1772293764936,4.19838196,80.803,80.771,4.31118827]
[1772293766352,4.19838196,80.801,80.772,16.69171617]
[1772293769242,4.19838196,80.799,80.773,4.31118827]
[1772293769843,4.19838196,80.789,80.744,4.31118827]
[1772293771454,4.19838196,80.787,80.745,12.38466778]
[1772293771756,4.19838196,80.787,80.746,4.31118827]
[1772293773748,4.19838196,80.785,80.748,4.31118827]
[1772293775256,4.19838196,80.783,80.748,4.31118827]
[1772293775951,4.19838196,80.779,80.741,4.31118827]
[1772293777458,4.19838196,80.777,80.741,4.31118827]
[1772293777656,4.19838196,80.777,80.742,12.38512793]
[1772293777845,4.19838196,80.777,80.743,4.31118827]
[1772293780862,6.13531587,80.79,80.745,4.36447544]
[1772293780863,4.28998859,80.775,80.745,4.36447544]
[1772293781453,12.37991482,80.776,80.751,4.36447544]
[1772293781960,16.66990341,80.776,80.751,4.36447544]
[1772293782264,4.28998859,80.775,80.751,4.36447544]
[1772293783053,16.67020994,80.774,80.751,4.36447544]
[1772293783558,12.38022135,80.774,80.753,4.36447544]
[1772293784155,4.28998859,80.773,80.753,4.36447544]
[1772293784969,12.3805279,80.772,80.753,4.36447544]
[1772293785662,4.28998859,80.773,80.755,4.44713474]
[1772293787558,16.6704022,80.773,80.755,4.44713474]
[1772293787875,4.46503189,80.772,80.748,4.44713474]
[1772293788166,30.9455014,80.788,80.738,12.51992347]
[1772293788167,4.46503189,80.769,80.738,12.51992347]
[1772293790177,4.46503189,80.767,80.738,8.07278873]
[1772293792377,4.46503189,80.765,80.738,8.07278873]
[1772293793960,4.46503189,80.765,80.738,12.51992347]
[1772293794253,4.46503189,80.765,80.738,8.07278873]
[1772293794462,4.46503189,80.763,80.738,8.07278873]
[1772293796274,4.46503189,80.761,80.738,8.07278873]
[1772293798474,4.46503189,80.759,80.738,8.07278873]
[1772293798684,6.1281068,80.77,80.741,4.44713474]
[1772293798685,12.38098775,80.769,80.741,4.44713474]
[1772293799251,16.84601964,80.769,80.741,4.44713474]
[1772293799758,12.38098775,80.769,80.741,4.44713474]
[1772293800771,4.46503189,80.774,80.751,4.44713474]
[1772293800969,12.37792273,80.789,80.761,4.44713474]
[1772293801177,6.1281068,80.84,80.761,4.44713474]
[1772293801359,4.46503189,80.809,80.781,4.44713474]
[1772293801752,4.46503189,80.829,80.791,4.44713474]
[1772293802772,4.46503189,80.827,80.791,4.44713474]
[1772293803961,4.46503189,80.819,80.791,4.44713474]
[1772293804362,4.46503189,80.825,80.793,4.44713474]
[1772293804578,4.46503189,80.839,80.801,4.44713474]
[1772293804874,16.83581946,80.836,80.811,4.44713474]
[1772293806065,4.46503189,80.835,80.811,4.44713474]
[1772293806283,4.46503189,80.835,80.811,16.82164322]
[1772293806683,4.46503189,80.833,80.811,16.82164322]
[1772293806879,4.46503189,80.833,80.811,4.44713474]
[1772293807378,4.46503189,80.833,80.805,4.44713474]
[1772293809170,4.46503189,80.831,80.807,4.44713474]
[1772293811183,4.16191956,80.836,80.809,4.45257829]
[1772293811369,12.37058459,80.837,80.811,4.45257829]
[1772293811559,4.16191956,80.836,80.811,4.45257829]
[1772293811881,0.74599999,80.849,80.811,4.45257829]
[1772293811882,4.16191956,80.847,80.811,4.45257829]
[1772293812083,4.16191956,80.847,80.821,4.45257829]
[1772293812670,12.36888976,80.848,80.821,4.45257829]
[1772293813083,12.36827784,80.852,80.823,4.45257829]
[1772293813381,4.16191956,80.851,80.823,4.45257829]
[1772293814071,4.16191956,80.839,80.806,4.45257829]
[1772293815388,4.16191956,80.837,80.808,4.45257829]
[1772293815882,12.37041985,80.838,80.795,4.45257829]
[1772293815883,4.16191956,80.829,80.795,4.45257829]
[1772293817491,4.16191956,80.827,80.797,4.45257829]
[1772293818292,4.16191956,80.827,80.788,4.45257829]
[1772293819393,4.16191956,80.827,80.791,4.45257829]
[1772293819693,4.16191956,80.825,80.793,4.45257829]
[1772293821095,43.30289758,80.826,80.781,4.45257829]
[1772293821096,4.16191956,80.819,80.781,4.45257829]
[1772293821771,4.16191956,80.817,80.783,4.45257829]
[1772293822586,4.16191956,80.817,80.791,4.45257829]
[1772293823894,4.16191956,80.815,80.791,4.45257829]
[1772293825896,12.37409359,80.814,80.791,4.45257829]
[1772293826197,4.16191956,80.839,80.793,4.45257829]
[1772293826971,4.16191956,80.836,80.793,4.45257829]
[1772293829296,4.16191956,80.834,80.795,4.45257829]
[1772293831396,4.16191956,80.832,80.797,4.45257829]
[1772293831702,4.16191956,80.829,80.797,4.45257829]
[1772293833102,43.30182609,80.828,80.791,4.45257829]
[1772293833301,4.16191956,80.827,80.791,4.45257829]
[1772293833804,4.16191956,80.819,80.791,4.45257829]
[1772293835298,4.16191956,80.817,80.791,4.45257829]
[1772293836604,4.16191956,80.815,80.791,4.45257829]
[1772293837405,4.16191956,80.815,80.792,4.45257829]
[1772293840304,30.93344804,80.819,80.782,30.94719399]
[1772293840305,6.2281068,80.87,80.802,0.14216157]
[1772293840502,4.16191956,80.859,80.831,4.45257829]
[1772293840683,4.16191956,80.859,80.803,1.23757781]
[1772293840684,4.34812915,80.865,80.84,6.1281068]
[1772293840889,12.56712648,80.86,80.84,6.1281068]
[1772293841103,0.2,80.86,80.84,6.1281068]
[1772293842320,0.2,80.86,80.841,12.36996078]
[1772293842602,4.34812915,80.858,80.83,8.15739296]
[1772293842812,4.34812915,80.858,80.831,2.02928616]
[1772293843892,4.34812915,80.858,80.821,2.02928616]
[1772293844402,4.39224584,80.856,80.823,2.02928616]
[1772293845533,4.39224584,80.854,80.825,2.02928616]
[1772293847702,4.39224584,80.852,80.826,12.37225645]
[1772293847897,4.39224584,80.852,80.826,14.40154261]
[1772293849096,4.39224584,80.852,80.827,2.02928616]
[1772293849417,10.3388387,80.853,80.826,12.37225645]
[1772293849608,10.3388387,80.853,80.83,6.11518841]
[1772293850310,12.36720711,80.859,80.831,12.37149113]
[1772293853898,4.5,80.856,80.819,6.7]
[1772293854114,4.5,80.856,80.82,12.37317495]
[1772293855101,4.5,80.856,80.819,6.7]
[1772293855301,4.5,80.856,80.818,15.27648226]
[1772293855907,4.5,80.854,80.818,15.27648226]
[1772293856123,4.5,80.849,80.818,15.27648226]
[1772293857829,4.5,80.849,80.82,6.11518841]
[1772293859435,4.5,80.847,80.821,12.37302186]
[1772293862323,4.5,80.845,80.821,12.37302186]
[1772293862527,4.5,80.845,80.798,6.7]
[1772293862731,4.5,80.839,80.777,0.28432314]
[1772293862935,4.5,80.839,80.8,6.11518841]
[1772293864029,4.5,80.845,80.81,6.11518841]
[1772293864226,4.5,80.845,80.82,6.11518841]
[1772293864409,12.36950175,80.844,80.821,12.37302186]
[1772293865328,12.36950175,80.844,80.81,37.051621]
[1772293865921,12.36950175,80.844,80.82,6.11518841]
[1772293866228,4.5,80.853,80.82,6.11518841]
[1772293866439,4.5,80.853,80.821,12.37302186]
[1772293866440,12.36827784,80.852,80.821,12.37302186]
[1772293866807,4.5,80.853,80.83,6.11518841]
[1772293867228,12.36827784,80.852,80.821,43.30557651]
[1772293867736,4.5,80.851,80.821,12.37302186]
[1772293868529,4.5,80.849,80.81,6.11518841]
[1772293869539,4.5,80.839,80.803,12.37577812]
[1772293870019,4.5,80.829,80.803,12.37577812]
[1772293870222,4.5,80.829,80.794,12.37715671]
[1772293870854,4.5,80.827,80.794,12.37715671]
[1772293874121,4.5,80.838,80.8,6.11518841]
[1772293875920,4.5,80.829,80.795,6.7]
[1772293876141,16.87195031,80.828,80.8,6.11518841]
[1772293877922,12.37195031,80.828,80.8,6.11518841]
[1772293878235,4.5,80.832,80.798,12.37654397]
[1772293880441,4.5,80.83,80.798,19.07654397]
[1772293882720,4.5,80.828,80.798,19.07654397]
[1772293883440,4.5,80.828,80.799,6.7]
[1772293885640,61.84278548,80.851,80.799,6.7]
[1772293885641,4.5,80.839,80.8,49.43202008]
[1772293889640,4.5,80.837,80.8,49.43202008]
[1772293890578,4.5,80.835,80.8,37.05578246]
[1772293893060,4.5,80.835,80.8,56.13202008]
[1772293894125,12.36904169,80.848,80.81,6.11518841]
[1772293894433,4.5,80.847,80.81,6.11518841]
[1772293895533,4.5,80.847,80.811,43.31093538]
[1772293896448,4.5,80.845,80.812,0.28432314]
[1772293896672,0.2,80.86,80.83,6.11518841]
[1772293897636,0.2,80.86,80.831,43.30021896]
[1772293898641,0.2,80.86,80.833,12.37118503]
[1772293898844,0.2,80.86,80.833,43.29914761]
[1772293901349,4.7,80.86,80.833,43.29914761]
[1772293904054,4.5,80.849,80.815,12.37394048]
[1772293904257,4.5,80.849,80.815,43.30879168]
[1772293904556,4.5,80.849,80.82,6.11488857]
[1772293905152,4.5,80.849,80.815,43.30879168]
[1772293905353,4.5,80.847,80.815,30.9348512]
[1772293905755,4.5,80.839,80.807,12.37506642]
[1772293907862,4.5,80.837,80.804,30.93906242]
[1772293909362,4.5,80.837,80.801,19.07608445]
[1772293909363,4.5,80.837,80.801,6.7]
[1772293909548,4.5,80.829,80.801,6.7]
[1772293910060,4.5,80.827,80.801,6.7]
[1772293910258,4.5,80.827,80.802,12.37593128]
[1772293911263,4.5,80.819,80.786,43.32433837]
[1772293911463,4.5,80.819,80.79,6.11488857]
[1772293912267,4.5,80.818,80.791,12.37761631]
[1772293913352,4.5,80.818,80.781,12.37914856]
[1772293915264,12.37363426,80.817,80.781,43.32701996]
[1772293915472,4.5,80.816,80.781,43.32701996]
[1772293916252,4.5,80.829,80.79,6.11488857]
[1772293916458,4.5,80.829,80.8,6.11488857]
[1772293917472,4.5,80.829,80.801,12.37608445]
[1772293918457,4.5,80.828,80.801,12.37608445]
[1772293918658,4.5,80.828,80.786,30.94563233]
[1772293919074,4.5,80.828,80.79,6.11488857]
[1772293920596,4.5,80.828,80.8,6.11488857]
[1772293920777,4.5,80.828,80.786,43.32401472]
[1772293920778,4.5,80.826,80.79,6.11488857]
[1772293922073,4.5,80.824,80.791,50.0216571]
[1772293922677,4.5,80.824,80.8,6.11488857]
[1772293922879,4.5,80.836,80.8,6.11488857]
[1772293923062,4.5,80.836,80.81,6.11488857]
[1772293923676,4.5,80.844,80.81,6.11488857]
[1772293923969,4.5,80.844,80.821,43.30557651]
[1772293927462,4.5,80.844,80.81,6.11488857]
[1772293928569,4.5,80.844,80.811,43.31093538]
[1772293929878,1e-08,80.86,80.83,6.11488857]
[1772293930074,1e-08,80.86,80.84,6.11488857]
[1772293930381,1e-08,80.86,80.85,6.11488857]
[1772293930584,1e-08,80.86,80.84,6.11488857]
[1772293930777,1e-08,80.86,80.85,6.11488857]
[1772293932183,1e-08,80.86,80.851,12.36843081]
[1772293933869,4.50000001,80.86,80.84,6.11488857]
[1772293934079,4.50000001,80.86,80.83,6.11488857]
[1772293935290,4.50000001,80.86,80.84,6.11488857]
[1772293935291,1e-08,80.86,80.84,6.11488857]
[1772293935464,1e-08,80.86,80.829,43.30129037]
[1772293935465,1e-08,80.86,80.85,6.11488857]
[1772293935864,1e-08,80.86,80.841,1.23699607]
[1772293936070,1e-08,80.86,80.842,43.2943272]
[1772293936476,1e-08,80.86,80.842,12.36980777]
[1772293937481,1e-08,80.86,80.832,30.92814476]
[1772293939094,1e-08,80.86,80.831,12.37149113]
[1772293939390,1e-08,80.86,80.831,43.30021896]
[1772293942203,0.1,80.87,80.85,6.11488857]
[1772293942491,4.5,80.868,80.84,6.11488857]
[1772293942674,4.5,80.868,80.841,12.36996078]
[1772293943370,43.28094278,80.867,80.833,12.37118503]
[1772293943576,4.5,80.866,80.833,12.37118503]
[1772293945086,12.36628949,80.865,80.833,12.37118503]
[1772293945285,4.5,80.864,80.833,12.37118503]
[1772293947095,4.5,80.864,80.84,6.11488857]
[1772293947295,4.6,80.87,80.84,6.11488857]
[1772293948480,4.6,80.87,80.841,43.29486274]
[1772293948881,4.6,80.87,80.85,6.11488857]
[1772293949287,4.5,80.868,80.828,30.92952827]
[1772293949487,4.5,80.868,80.84,6.11488857]
[1772293950794,4.5,80.866,80.841,12.36996078]
[1772293952483,4.6,80.87,80.85,6.11488857]
[1772293952679,4.6,80.87,80.851,12.36843081]
[1772293953801,4.5,80.868,80.832,12.37133808]
[1772293954884,4.5,80.866,80.832,12.37133808]
[1772293955085,4.5,80.866,80.813,7.93742467]
[1772293955281,4.5,80.859,80.814,12.37409359]
[1772293955491,4.5,80.849,80.814,12.37409359]
[1772293955688,4.5,80.849,80.801,12.37608445]
[1772293955899,92.74487738,80.867,80.801,43.31629558]
[1772293955900,4.5,80.839,80.801,43.31629558]
[1772293956797,4.5,80.837,80.792,30.94344442]
[1772293957199,4.5,80.837,80.8,6.11488857]
[1772293959212,4.5,80.835,80.801,12.37608445]
[1772293960892,4.5,80.833,80.801,12.37608445]
[1772293961214,4.5,80.833,80.801,43.31629558]
[1772293964111,4.5,80.831,80.801,43.31629558]
[1772293965412,12.37164419,80.83,80.8,6.11977283]
[1772293965708,4.5,80.829,80.8,6.11977283]
[1772293967416,4.5,80.829,80.801,12.37608445]
[1772293968016,4.5,80.827,80.801,12.37608445]
[1772293970205,4.5,80.827,80.801,43.31629558]
[1772293970607,0.74599999,80.865,80.83,6.11977283]
[1772293971611,12.3666991,80.863,80.831,4.40144597]
[1772293971813,12.3666991,80.863,80.832,16.77278405]
[1772293972009,12.3666991,80.863,80.833,4.40144597]
[1772293972524,4.36195444,80.862,80.833,4.40144597]
[1772293974222,0.74599999,80.865,80.832,12.37133808]
[1772293974223,4.36195444,80.86,80.832,12.37133808]
[1772293974518,4.36195444,80.859,80.822,12.37286877]
[1772293975905,4.36195444,80.859,80.823,4.40144597]
[1772293976106,4.36195444,80.857,80.824,12.3725626]
[1772293976306,4.36195444,80.857,80.825,4.40144597]
[1772293977718,4.36195444,80.857,80.824,12.3725626]
[1772293978622,4.36195444,80.849,80.82,12.37317495]
[1772293980725,4.36195444,80.849,80.807,6.7]
[1772293980726,4.36195444,80.863,80.831,4.40144597]
[1772293983734,4.36195444,80.859,80.811,4.40144597]
[1772293984030,4.36195444,80.859,80.821,4.40144597]
[1772293984819,4.36195444,80.859,80.831,4.40144597]
[1772293985623,4.36195444,80.859,80.84,6.11977283]
[1772293985836,4.36195444,80.859,80.837,12.37057288]
[1772293986534,4.36195444,80.858,80.83,6.11977283]
[1772293986738,4.36195444,80.858,80.83,10.5212188]
[1772293987631,4.36195444,80.858,80.82,43.30611234]
[1772293987632,4.36195444,80.849,80.82,12.37317495]
[1772293987814,4.36195444,80.849,80.811,12.37455296]
[1772293988722,4.36195444,80.839,80.811,12.37455296]
[1772293989024,4.36195444,80.839,80.811,43.31093538]
[1772293989536,6.11977283,80.82,80.779,12.75275759]
[1772293989852,4.31833489,80.789,80.74,0.05638045]
[1772293990143,4.27515154,80.76,80.74,0.05638045]
[1772293990440,6.11977283,80.78,80.74,4.53478877]
[1772293990634,6.11977283,80.79,80.751,4.47840832]
[1772293990828,6.11977283,80.79,80.754,4.47840832]
[1772293991134,6.11977283,80.79,80.741,4.47840832]
[1772293991326,6.11977283,80.78,80.741,4.47840832]
[1772293991917,21.6537206,80.798,80.721,12.38834999]
[1772293991918,6.11977283,80.76,80.721,12.38834999]
[1772293992120,6.11977283,80.75,80.721,12.38834999]
[1772293992620,0.04275151,80.729,80.71,0.2]
[1772293992832,6.16252434,80.72,80.701,12.39142018]
[1772293993337,16.48348019,80.72,80.701,12.39142018]
[1772293993636,0.04275151,80.709,80.69,12.59305028]
[1772293993834,27.37318913,80.756,80.693,4.47840832]
[1772293993835,0.04275151,80.726,80.693,4.47840832]
[1772293994020,0.04275151,80.726,80.692,12.39280226]
[1772293994021,0.04275151,80.738,80.701,4.47840832]
[1772293994224,0.04275151,80.737,80.701,4.47840832]
[1772293994834,23.58785119,80.738,80.701,4.47840832]
[1772293995140,23.58785119,80.738,80.711,4.47840832]
[1772293995946,23.58785119,80.738,80.713,4.47840832]
[1772293998145,0.04275151,80.737,80.704,4.47840832]
[1772293998536,0.04275151,80.737,80.71,16.44072868]
[1772293999341,23.58785119,80.738,80.73,16.44072868]
[1772293999342,19.04773945,80.738,80.73,16.44072868]
[1772293999542,19.04773945,80.738,80.721,4.47840832]
[1772294000126,19.04773945,80.738,80.722,12.38819652]
[1772294000424,19.04773945,80.738,80.701,4.47840832]
[1772294000629,19.04773945,80.738,80.72,16.44072868]
[1772294001231,0.04275151,80.756,80.73,16.44072868]
[1772294001436,0.04275151,80.755,80.73,16.44072868]
[1772294001632,1.23773099,80.754,80.73,16.44072868]
[1772294002028,0.04275151,80.753,80.73,16.44072868]
[1772294002235,1.2804825,80.752,80.731,12.38681547]
[1772294003026,20.55595098,80.757,80.74,16.44072868]
[1772294003226,0.04275151,80.777,80.75,16.44072868]
[1772294003535,0.04275151,80.785,80.76,16.44072868]
[1772294004445,0.04275151,80.785,80.76,28.82306306]
[1772294005048,1.23773099,80.785,80.761,4.47840832]
[1772294005944,1.23773099,80.784,80.761,4.47840832]
[1772294006140,0.04275151,80.793,80.761,4.47840832]
[1772294006340,1.2804825,80.793,80.761,4.47840832]
[1772294006536,1.2804825,80.793,80.771,4.47840832]
[1772294006537,1.23773099,80.793,80.771,4.47840832]
[1772294006844,0.04275151,80.81,80.781,4.47840832]
[1772294007030,1.2804825,80.81,80.781,4.47840832]
[1772294007426,0.04275151,80.822,80.79,16.44072868]
[1772294007640,0.04275151,80.82,80.787,4.47840832]
[1772294007940,1.23773099,80.819,80.791,4.47840832]
[1772294008248,1.23773099,80.819,80.78,16.44072868]
[1772294008249,0.04275151,80.818,80.78,16.44072868]
[1772294008544,0.04275151,80.816,80.78,16.44072868]
[1772294008723,0.04275151,80.814,80.78,16.44072868]
[1772294008929,0.04275151,80.812,80.78,16.44072868]
[1772294009128,0.04275151,80.81,80.78,16.44072868]
[1772294009428,0.04275151,80.808,80.78,16.44072868]
[1772294009633,1.23773099,80.807,80.78,28.81993795]
[1772294010032,1.23773099,80.807,80.781,4.47840832]
[1772294010233,0.04275151,80.837,80.801,4.47840832]
[1772294010545,0.04275151,80.844,80.811,4.47840832]
[1772294010731,0.04275151,80.844,80.82,16.44072868]
[1772294010933,0.04275151,80.844,80.813,4.47840832]
[1772294011334,0.04275151,80.844,80.812,16.85280816]
[1772294011640,0.04275151,80.844,80.813,4.47840832]
[1772294013053,0.04275151,80.844,80.814,16.85250191]
[1772294015139,0.04275151,80.844,80.814,4.47840832]
[1772294018445,12.36391,80.881,80.831,4.47840832]
[1772294018651,0.04275151,80.876,80.843,4.47840832]
[1772294019659,0.04275151,80.876,80.842,12.36980777]
[1772294019660,0.04275151,80.876,80.845,4.47840832]
[1772294020940,0.14275151,80.87,80.845,4.47840832]
[1772294021140,0.04275151,80.869,80.84,28.81081193]
[1772294021759,0.04275151,80.869,80.84,33.28922025]
[1772294022265,0.04275151,80.869,80.84,20.919137]
[1772294022558,0.04275151,80.869,80.833,4.47840832]
[1772294022750,0.04275151,80.869,80.834,16.84944031]
[1772294022947,0.04275151,80.869,80.835,4.47840832]
[1772294024256,0.04275151,80.869,80.837,4.47840832]
[1772294024443,0.1,80.87,80.841,4.47840832]
[1772294025255,0.04275151,80.869,80.841,4.47840832]
[1772294027171,0.04275151,80.869,80.842,4.47840832]
[1772294028465,0.1,80.87,80.86,16.37752843]
[1772294028758,0.1,80.87,80.86,20.85593675]
[1772294028956,0.1,80.87,80.851,4.47840832]
[1772294029372,12.56254956,80.89,80.861,4.42840832]
[1772294029566,0.14175151,80.889,80.851,4.42840832]
[1772294030967,0.14175151,80.889,80.85,16.37752843]
[1772294031160,0.14175151,80.889,80.841,12.36996078]
[1772294031560,0.14175151,80.889,80.842,4.42840832]
[1772294032059,0.14175151,80.879,80.842,4.42840832]
[1772294032264,0.14175151,80.879,80.837,12.37053095]
[1772294032566,0.14175151,80.879,80.84,16.37752843]
[1772294033160,0.14175151,80.878,80.84,28.74753194]
[1772294033771,0.14175151,80.878,80.84,12.37000351]
[1772294034170,0.14175151,80.878,80.841,4.42840832]
[1772294035264,0.14175151,80.878,80.843,4.42840832]
[1772294038166,0.14175151,80.878,80.837,4.42840832]
[1772294038366,0.14175151,80.869,80.83,12.37155997]
[1772294038560,0.14175151,80.868,80.831,4.42840832]
[1772294040900,12.50590042,80.879,80.841,4.42840832]
[1772294041862,0.14175151,80.878,80.841,4.42840832]
[1772294045183,0.14175151,80.878,80.851,4.42840832]
[1772294046398,0.14175151,80.878,80.852,12.36827784]
[1772294046775,0.14175151,80.878,80.851,4.42840832]
[1772294047582,0.14175151,80.878,80.852,4.42840832]
[1772294047795,0.14175151,80.885,80.852,4.42840832]
[1772294048581,0.14175151,80.879,80.844,4.42840832]
[1772294051591,0.14175151,80.879,80.846,4.42840832]
[1772294052092,12.56260035,80.89,80.861,4.42840832]
[1772294052272,0.14175151,80.889,80.861,4.42840832]
[1772294053797,0.14175151,80.889,80.863,4.42840832]
[1772294054593,0.14175151,80.889,80.862,12.36674828]
[1772294054797,0.14175151,80.889,80.858,4.42840832]
[1772294056076,0.14175151,80.889,80.851,4.42840832]
[1772294058577,0.14175151,80.889,80.853,4.42840832]
[1772294060004,0.14175151,80.889,80.855,4.42840832]
[1772294060304,10.20422771,80.89,80.855,4.49928408]
[1772294061295,16.31882404,80.89,80.855,4.49928408]
[1772294062491,47.22499291,80.89,80.855,4.49928408]
[1772294069309,41.11039658,80.89,80.855,4.49928408]
[1772294071108,6.11459633,80.88,80.844,4.49928408]
[1772294071417,3.69383402,80.887,80.844,4.49928408]
[1772294073210,43.27077615,80.886,80.846,4.49928408]
[1772294077810,6.11459633,80.88,80.846,4.49928408]
[1772294079199,43.27077615,80.886,80.846,4.49928408]
[1772294079711,12.3630789,80.886,80.861,4.49928408]
[1772294080811,12.36170344,80.895,80.861,4.49928408]
[1772294081598,30.90418277,80.896,80.861,4.49928408]
[1772294081803,3.69383402,80.898,80.871,4.49928408]
[1772294082112,0.1,80.9,80.871,4.49928408]
[1772294086414,0.1,80.9,80.866,12.36606245]
[1772294086614,12.35956444,80.909,80.891,4.49928408]
[1772294087616,6.10673752,80.9,80.853,4.49928408]
[1772294087821,3.69383402,80.906,80.861,4.49928408]
[1772294087997,12.36017551,80.905,80.863,4.49928408]
[1772294088196,43.26061429,80.905,80.863,4.49928408]
[1772294089304,43.26061429,80.905,80.871,4.49928408]
[1772294089828,6.10673752,80.9,80.86,6.10673752]
[1772294090010,43.26061429,80.905,80.861,4.49928408]
[1772294092332,3.69383402,80.896,80.861,4.49928408]
[1772294093508,43.26596204,80.895,80.861,4.49928408]